Cogmind - Beta 13 @@@ ROGUE MODE // 2024.06.22 @ 12:51:27 Player: ILikeVoltron Result: Self-destructed Performance ------------- Evolutions (1) 500 Regions Visited (2) 400 Robots Destroyed (20) 100 Value Destroyed (309) 309 Prototype IDs (3) 60 Alien Tech Used (0) 0 Bonus (0) 0 TOTAL SCORE: 1369 Bonus ------- None Cogmind --------- Core Integrity 371/400 Matter 246/300 Energy 125/125 System Corruption 0% Temperature Cool (16) Movement Core (500) Ox9 Location -9/Materials Parts ------- > --- POWER (1) -------- Light Ion Engine > --- PROPULSION (3) --- (None) > --- UTILITY (3) ------ Large Storage Unit Improved Terrain Scanner > --- WEAPON (2) ------- Light Assault Rifle Improved Assault Rifle > --- INVENTORY (15) --- Ion Engine Light Treads Large Storage Unit Huge Storage Unit Large Matter Pod (90) Transport Network Coupler Beam Cannon Light Assault Rifle Grenade Launcher Mining Laser Peak State ------------ > --- POWER ------------ Light Ion Engine > --- PROPULSION ------- Aluminum Leg Aluminum Leg Wheel > --- UTILITY ---------- Large Storage Unit Improved Terrain Scanner Seismic Detector > --- WEAPON ----------- Beam Cannon Improved Assault Rifle > --- INVENTORY -------- Ion Engine Light Treads Large Storage Unit Huge Storage Unit Large Matter Pod Transport Network Coupler Light Assault Rifle Light Assault Rifle Grenade Launcher Mining Laser [Rating: 14] Favorites ----------- Power Ion Engine Engine Ion Engine Propulsion Aluminum Leg Leg Aluminum Leg Wheel Wheel Utility Improved Terrain Scanner Device Improved Terrain Scanner Storage Medium Storage Unit Weapon Assault Rifle Energy Gun Small Laser Energy Cannon Beam Cannon Ballistic Gun Assault Rifle Special Weapon Mining Laser Build | -11 -10 -9 ------- Run | Yrd Mat Mat Slots Evolved 2 | . . 2 Power . | . . . Propulsion 1 | . . 1 Utility 1 | . . 1 Weapon . | . . . Parts Attached 14 | 1 8 5 Power 1 | . 1 . Engine 1 | . 1 . Core . | . . . Reactor . | . . . Propulsion 1 | . . 1 Treads . | . . . Leg . | . . . Wheel 1 | . . 1 Hover . | . . . Flight . | . . . Utility 4 | 1 2 1 Device 2 | 1 . 1 Storage 2 | . 2 . Processor . | . . . Hackware . | . . . Protection . | . . . Artifact . | . . . Weapon 8 | . 5 3 Energy Gun 1 | . 1 . Energy Cannon 2 | . 1 1 Ballistic Gun 4 | . 2 2 Ballistic Cannon . | . . . Launcher . | . . . Special Weapon 1 | . 1 . Impact Weapon . | . . . Slashing Weapon . | . . . Piercing Weapon . | . . . Special Melee Weapon . | . . . Unidentified Prototypes 1 | . . 1 Parts Lost 5 | . 1 4 Power . | . . . Propulsion 3 | . . 3 Utility 1 | . . 1 Weapon 1 | . 1 . Highest Loss Streak 4 | . 1 4 To Critical Strikes . | . . . Average Slot Usage (%) 98 | . 100 90 Engine 13 | . 14 11 Leg 26 | . 28 18 Wheel 1 | . . 9 Device 14 | . 14 18 Storage 13 | . 14 11 Energy Gun 3 | . 4 . Energy Cannon 6 | . 6 6 Ballistic Gun 14 | . 14 14 Special Weapon 2 | . 3 . Naked Turns . | . . . Heaviest Build 31 | 14 28 31 Greatest Support 20 | 20 20 10 Greatest Overweight (x) 3 | . 1 3 Average Overweight (x) . | . . 2 Largest Inventory Capacity 15 | 8 15 15 Average Capacity 10 | 8 10 15 Most Carried 12 | 8 11 12 Average Carried 9 | 7 9 10 Final Capacity 15 | 8 15 15 Final Carried 11 | 8 11 10 Class Distribution -------------------- 96% | Mutant 3% | Scavenger-Mutant Dominant Class ---------------- Mutant | -10/Materials Mutant | -9/Materials Resources | -11 -10 -9 ----------- Run | Yrd Mat Mat Matter Collected 641 | 237 356 48 Remotely . | . . . Salvage Created 568 | 166 275 127 Parts 49 | 17 22 10 Haulers Intercepted 1 | . 1 . Recyclers Shooed . | . . . Parts Field Recycled . | . . . Retrieved Matter . | . . . Parts Self-Destructed . | . . . Prevented . | . . . Kills | -11 -10 -9 ------- Run | Yrd Mat Mat Combat Hostiles Destroyed 8 | . 6 2 Guns 5 | . 4 1 Cannons 2 | . 2 . Classes Destroyed 8 | 2 6 . Worker 1 | . 1 . Builder 2 | . 1 1 Tunneler 5 | 5 . . Hauler 1 | . 1 . Recycler 1 | 1 . . Watcher 2 | . 1 1 Swarmer 3 | . 3 . Grunt 5 | . 3 2 Best Kill Streak 4 | 4 4 4 Combat Bots Only 2 | . 2 2 Max Kills in Single Turn 1 | 1 1 1 Gunslinging . | . . . Exploded . | . . . Melee . | . . . Uniques/NPCs Destroyed . | . . . Combat | -11 -10 -9 -------- Run | Yrd Mat Mat Hostile Shots Fired 101 | . 67 34 Missed 31 | . 21 10 Damage Taken 781 | . 450 331 Core 96 | . 67 29 Absorbed by Shields . | . . . Core Remaining (%) 86 | 100 73 . Volleys Fired 78 | 9 56 13 Largest 2 | 2 2 2 Hottest 100 | 60 100 83 Shots Fired 155 | 18 111 26 Gun 129 | 18 89 22 Cannon 25 | . 21 4 Launcher . | . . . Special 1 | . 1 . Kinetic 86 | 9 55 22 Thermal 69 | 9 56 4 Explosive . | . . . Electromagnetic . | . . . Robot Hit Streak 11 | 5 7 11 Robot Miss Streak 8 | 2 8 1 Penetration Max . | . . . Secondary Targets . | . . . Shots Hit Robots 83 | 9 53 21 Core Hits 30 | 7 14 9 Critical Kills 1 | . . 1 Critical Parts Destroyed . | . . . Critical Strikes 1 | . . 1 Meltdown 1 | . . 1 Melee Attacks . | . . . Impact . | . . . Slashing . | . . . Piercing . | . . . Sneak Attacks . | . . . Combat Hostiles . | . . . Follow-up Attacks . | . . . Damage Inflicted 1069 | 120 684 265 Guns 858 | 120 525 213 Cannons 211 | . 159 52 Explosions . | . . . Melee . | . . . Ramming . | . . . Kinetic 606 | 42 351 213 Thermal 463 | 78 333 52 Explosive . | . . . Electromagnetic . | . . . Impact . | . . . Slashing . | . . . Piercing . | . . . Highest Corruption . | . . . Average Corruption . | . . . Corruption Purged . | . . . Corruption Blocked . | . . . Overload Shots . | . . . Overflow Damage . | . . . Projectiles . | . . . Explosions . | . . . Melee . | . . . Knockbacks . | . . . Impact . | . . . Kinetic . | . . . Secondary . | . . . Self-Inflicted Damage . | . . . Shots . | . . . Rammed . | . . . Targets Rammed . | . . . Kicked . | . . . Crushed . | . . . Highest Temperature 216 | . 216 81 Average Temperature 59 | . 63 34 Received Heat Transfer 303 | . 168 135 Siege Activations . | . . . Robots Corrupted . | . . . Combat Hostiles . | . . . Parts Fried . | . . . Impact Corruptions . | . . . Robots Melted 1 | . . 1 Combat Hostiles 1 | . . 1 Parts Melted 1 | . . 1 Heat Transferred 1019 | 175 733 111 Parts Sabotaged . | . . . Parts Stolen . | . . . Parts Stripped . | . . . Power Chain Reactions . | . . . Alert | -11 -10 -9 ------- Run | Yrd Mat Mat Peak Influence 127 | 30 127 124 Initial 53 | . 19 53 Average 54 | 10 57 73 Maximum Alert Level . | . . . Low Security (%) 100 | 100 100 100 Level 1 . | . . . Level 2 . | . . . Level 3 . | . . . Level 4 . | . . . Level 5 . | . . . High Security . | . . . Max Security . | . . . Squads Dispatched 1 | . . 1 Investigation . | . . . Extermination . | . . . Reinforcement 1 | . . 1 Assault . | . . . Garrison . | . . . Intercept . | . . . Searches Triggered . | . . . Construction Impeded . | . . . Haulers Reinforced . | . . . Active Scanning Responses . | . . . Cargo Convoy Interrupts . | . . . Stealth | -11 -10 -9 --------- Run | Yrd Mat Mat Distress Signals 3 | . 2 1 Communications Jammed . | . . . Distress Signals . | . . . Times Spotted 18 | . 12 6 Peak Tracking Total 4 | . 3 4 Tactical Retreats . | . . . Traps | -11 -10 -9 ------- Run | Yrd Mat Mat Traps Triggered . | . . . Indirectly . | . . . Trap Hack Attempts . | . . . Triggered . | . . . Disarmed . | . . . Reprogrammed . | . . . Reused . | . . . Traps Extracted . | . . . Installed . | . . . Triggered . | . . . Machines | -11 -10 -9 ---------- Run | Yrd Mat Mat Machines Disabled 1 | . 1 . Max in Single Turn 1 | . 1 . Machines Repaired . | . . . Machines Dismantled . | . . . Machines Sabotaged . | . . . Overloaded Fab Kills . | . . . Hacking | -11 -10 -9 --------- Run | Yrd Mat Mat Machines Accessed 6 | . 5 1 Terminals 6 | . 5 1 Fabricators . | . . . Repair Stations . | . . . Recycling Units . | . . . Scanalyzers . | . . . Garrison Access . | . . . Total Hacks 12 | . 10 2 Successful 6 | . 5 1 Failed 6 | . 5 1 Catastrophic . | . . . Database Lockouts . | . . . Manual 8 | . 8 . Terminals 12 | . 10 2 Fabricators . | . . . Repair Stations . | . . . Recycling Units . | . . . Scanalyzers . | . . . Garrison Access . | . . . Terminal Hacks 3 | . 2 1 Prototype ID Bank 1 | . . 1 Locate Traps 1 | . 1 . Hauler Manifests 1 | . 1 . Fabricator Hacks . | . . . Repair Station Hacks . | . . . Recycling Unit Hacks . | . . . Scanalyzer . | . . . Garrison Access Hacks . | . . . Unauthorized Hacks 3 | . 3 . Terminals 3 | . 3 . Track 1 | . 1 . Botnet 2 | . 2 . Fabricators . | . . . Repair Stations . | . . . Recycling Units . | . . . Scanalyzers . | . . . Garrison Access . | . . . Data Cores Recovered . | . . . Used . | . . . Hacking Detections 4 | . 3 1 Full Trace Events 1 | . 1 . Feedback Events . | . . . Feedback Blocked . | . . . Robot Schematics Acquired . | . . . Robots Built . | . . . Authchips . | . . . Time . | . . . Total Robot Build Rating . | . . . Part Schematics Acquired . | . . . Parts Built . | . . . Authchips . | . . . Time . | . . . Total Part Build Rating . | . . . Parts Repaired . | . . . Time . | . . . Parts Recycled . | . . . Recycled Matter . | . . . Retrieved Matter . | . . . Retrieved Components . | . . . Parts Scanalyzed . | . . . Part Schematics Acquired . | . . . Parts Damaged . | . . . Bothacking | -11 -10 -9 ------------ Run | Yrd Mat Mat Used RIF Installer . | . . . Robots Hacked . | . . . Non-combat . | . . . Combat . | . . . Robot Hacks Applied . | . . . Relay Couplers Released . | . . . Fabnet Peak Effective % . | . . . Robots Rewired . | . . . Allies Hacked . | . . . Hacks Repelled . | . . . Allies | -11 -10 -9 -------- Run | Yrd Mat Mat Total Allies . | . . . Largest Group . | . . . Highest-Rated Group . | . . . Highest-Rated Ally . | . . . Total Orders . | . . . Ally Attacks . | . . . Total Damage . | . . . Kills . | . . . Allies Corrupted . | . . . Allies Melted . | . . . Intel | -11 -10 -9 ------- Run | Yrd Mat Mat Robot Analysis Total . | . . . Derelict Logs Recovered . | . . . Drone Launches . | . . . Drone Recoveries . | . . . Exploration | -11 -10 -9 ------------- Run | Yrd Mat Mat Turns Passed 942 | 89 753 100 Spaces Moved 513 | 49 430 34 Core . | . . . Treads . | . . . Legs 480 | 49 430 1 Wheels 33 | . . 33 Hover . | . . . Flight . | . . . Fastest Speed 110 | 120 120 110 Average Speed 129 | 120 130 122 Slowest Speed 260 | 120 190 260 Overloaded Moves . | . . . Propulsion Burnouts . | . . . Robots Hopped . | . . . Cave-ins Triggered . | . . . Exploration Rate (%) 27 | 4 71 6 Regions Visited 2 Branch Regions . Pre-discovered Areas . | . . . Known Exits Taken . | . . . Unknown Exits Taken 2 | 1 1 . Scrap Searched . | . . . Spaces Dug 1 | . 1 . Terrain Destroyed 1 | . 1 . Melee . | . . . Projectile 1 | . 1 . AOE . | . . . Terrain Rammed . | . . . Walls Destroyed . | . . . Machines Disabled . | . . . Actions | -11 -10 -9 --------- Run | Yrd Mat Mat Total 643 | 60 515 68 Wait 17 | . 3 14 Move 511 | 48 429 34 Hop . | . . . Pick Up 11 | 2 9 . Fast Attach 2 | 1 . 1 Attach 4 | . 1 3 Detach 2 | . . 2 Swap 8 | . 7 1 Drop 10 | . 10 . Fire 78 | 9 56 13 Melee . | . . . Ram . | . . . Kick . | . . . Crush . | . . . Escape Stasis . | . . . Rewire . | . . . Trap . | . . . Miscellaneous . | . . . Route ------- -11/Scrapyard -10/Materials (discovered 3 exits: *Mat x2 / [*Min]) -9/Materials History --------- Turn | Location | Event 1 | -11/Scrapyard | Discovered new exit (range 2) 90 | -11/Scrapyard | Entered Materials 310 | -10/Materials | Build established: Mutant 312 | -10/Materials | Discovered new exit (range 16) 628 | -10/Materials | Discovered new exit (range 16) 803 | -10/Materials | Discovered new exit (range 16) 843 | -10/Materials | Entered another Materials area 843 | -9/Materials | Evolved 2 slots: Propulsion x1, Utility x1 943 | -9/Materials | Self-destructed Last Messages --------------- 00879_ Current location identified: Materials >>Prototypes Downloading prototype IDs... Adv. Beam Cannon Adv. Beam Rifle 00894_ W-16 Scout sends out distress signal. 00911_ G-47 Trooper suffers critical hit (Meltdown). 00911_ Lgt. Nuclear Core melted. 00924_ G-34 Mercenary destroyed. 00925_ Aluminum Leg destroyed. 00928_ U-05 Engineer builds a Door. 00930_ Acquired 48 matter. 00933_ Aluminum Leg destroyed. 00935_ U-05 Engineer destroyed. 00936_ Seismic Detector destroyed. 00937_ Wheel destroyed. 00938_ W-16 Scout destroyed. 00942_ O-16 Technician uses terminal to summon reinforcements. 00942_ ALERT: Hostiles spotted, dispatching reinforcements to Terminal M007. 00942_ O-16 Technician locks terminal. Map ----- +----------------------------------------------------+ | ???????????????????????????????? | | ???????????????????????????????? | | ???????????????????????????????? | | ???????????????????????????????? | | ???????????????????????????????? | | ???????????????????????????????? | | ???????????????????????????????? | | ???????????????????????????????? | | ???????????????????????????????? | | ????#?????? ???????????????????? | | ??????????"????????????????????? | | ?????#?????????????????????????? | | ??????? ???????????????????????? | | ??????????????? ???????????????? | | ??????????????? ? ?????????????? | | ?????????? ???? ??? ?? ????????? | | ????????????????#??????????????? | | ???????#??????? ??????#????????? | | ???????????????????????????????? | | #########??????????????????????? | | # T ## ????????????????????? | | # o#????????? ????????????? | | # ##########+###?????????? | | # # =%Y ##########+ | | # !#=! ! | | # @/=%! | | # """ %#[= ??? | | # """"" ### Y |=[ #?????????? | | # """"" #?# =[ ##?????????? | | # """"" #?# = #??????????? | | ?? """ #?# #??????????? | | ???######?# #??????????? | | ?##??????## """ #??????????? | | ??????#???# """ #?? ???????? | | ????####### """ #??????????? | | ????# """ #??????????? | | ????# """ #??????????? | | #???# #??????????? | | ???###### #??????????? | | ??????? # ????????? | | ????????# ???????? | | ????????+ ???????? | | ?????? ?# ######+#####???????? | | ????????# #????????? ????????? | | ????????# #??????????????????? | | ????????# #??????????????????? | | ????????# #??????????????????? | | ????????# #??????????????????? | | ????????# #??????????????????? | | ????????? #??????????????????? | +----------------------------------------------------+ Best States ------------- Heat Dissipation 28 Energy Generation 10 Energy Capacity 250 Matter Stores 300 Matter Capacity 300 Sight Range 16 Terrain Scan Range 16 Terrain Scan Density 10 Evasion (%) 55 Item Schematics ----------------- None Robot Schematics ------------------ None Fabricated ------------ Nothing Alien Tech Used ----------------- None Achievements -------------- None Challenges ------------ None Game ------ Seed MomentumLightningTrap Manual? 0 Play Time 00:11:22 Cumulative 133.1 hours Start 2024.06.22 @ 12:41:41 End 2024.06.22 @ 12:51:27 Sessions 1 Manual Loads 0 Difficulty Rogue Special Mode None Game No. 213 Rogue 209 Adventurer 0 Explorer 4 Win Type - Total 0 Types 0/0/0/0/0/0/0/0/0 Lore% 26 Gallery% 46 Achievement% 34 Wizard Run 0 Options --------- Layout 2 ASCII 0 Keyboard 1 Movement Arrows Keybinds 0 Fullscreen 1 Font 32/SmallcapsGlow Map View 130x44 Zoom Use 0% Tactical HUD 1 Map Filters NONE Filters NONE Steam 1 RUN: 80cbf43f-24d3-4915-8090-b3fcde264cef